bitfinex/quotes_BTCUSD_20241028
["timestamp","ask_amount","ask_price","bid_price","bid_amount"]
[1730095842739,0.24979719,67910.0,67909.0,0.02463155]
[1730095842979,0.26179719,67910.0,67909.0,0.02463155]
[1730095843203,0.27579719,67910.0,67909.0,0.02463155]
[1730095843408,0.26379719,67910.0,67909.0,0.02463155]
[1730095843830,0.27779719,67910.0,67909.0,0.02463155]
[1730095844469,0.32182474,67910.0,67909.0,0.02463155]
[1730095845654,0.27779719,67910.0,67909.0,0.02463155]
[1730095848988,0.36779719,67910.0,67909.0,0.02463155]
[1730095849216,0.43383852,67910.0,67909.0,0.02463155]
[1730095850125,0.41983852,67910.0,67909.0,0.02463155]
[1730095851089,0.43383852,67910.0,67909.0,0.02463155]
[1730095852300,0.36779719,67910.0,67909.0,0.02463155]
[1730095852517,0.62928296,67910.0,67909.0,0.02463155]
[1730095854126,0.51921407,67910.0,67909.0,0.02463155]
[1730095854589,0.71169308,67910.0,67909.0,0.02463155]
[1730095854821,0.60341407,67910.0,67909.0,0.02463155]
[1730095857796,0.69525917,67910.0,67909.0,0.02463155]
[1730095858002,0.60141407,67910.0,67909.0,0.02463155]
[1730095858215,0.60031717,67910.0,67909.0,0.02463155]
[1730095858457,0.60231717,67910.0,67909.0,0.02463155]
[1730095859035,0.71153557,67910.0,67909.0,0.02463155]
[1730095859311,0.80338067,67910.0,67909.0,0.02463155]
[1730095860103,0.80138067,67910.0,67909.0,0.02463155]
[1730095860815,0.80338067,67910.0,67909.0,0.02463155]
[1730095861599,0.80138067,67910.0,67909.0,0.02463155]
[1730095861846,0.70953557,67910.0,67909.0,0.02463155]
[1730095866167,0.71153557,67910.0,67909.0,0.02463155]
[1730095866685,0.80138067,67910.0,67909.0,0.02463155]
[1730095866918,0.71153557,67910.0,67909.0,0.02463155]
[1730095867143,0.80338067,67910.0,67909.0,0.02463155]
[1730095867374,0.89690008,67910.0,67909.0,0.02463155]
[1730095868553,0.005,67897.0,67896.0,0.21984948]
[1730095868778,0.147281,67897.0,67896.0,0.24331432]
[1730095868979,0.15294882,67897.0,67896.0,0.02346484]
[1730095869523,0.24479392,67897.0,67896.0,0.02346484]
[1730095870018,0.147286,67895.0,67894.0,0.0241775]
[1730095870263,0.147288,67894.0,67893.0,0.1747]
[1730095870494,0.147288,67894.0,67893.0,0.1988775]
[1730095870752,0.15795187,67894.0,67893.0,0.1988775]
[1730095871221,0.01066387,67894.0,67889.0,0.1779816]
[1730095871454,0.2391421,67890.0,67889.0,0.1779816]
[1730095871955,0.24480159,67890.0,67889.0,0.1779816]
[1730095873856,0.25580159,67890.0,67889.0,0.1779816]
[1730095874076,0.26680159,67890.0,67889.0,0.1779816]
[1730095875964,0.26680159,67890.0,67889.0,0.1772]
[1730095876184,0.26680159,67890.0,67889.0,0.1779816]
[1730095877870,0.26680159,67890.0,67889.0,0.1796256]
[1730095887470,0.26680159,67890.0,67889.0,0.178844]
[1730095887725,0.42977416,67890.0,67889.0,0.001644]
[1730095887965,0.62469753,67890.0,67889.0,0.001644]
[1730095888441,0.51448507,67890.0,67889.0,0.001644]
[1730095888661,0.49248507,67890.0,67889.0,0.001644]
[1730095889098,0.50448507,67890.0,67889.0,0.001644]
[1730095889351,0.49248507,67890.0,67889.0,0.001644]
[1730095889572,0.50648507,67890.0,67889.0,0.001644]
[1730095890052,0.51848507,67890.0,67889.0,0.001644]
[1730095890503,0.49248507,67890.0,67889.0,0.001644]
[1730095890723,0.50648507,67890.0,67889.0,0.001644]
[1730095890946,0.63543402,67890.0,67889.0,0.001644]
[1730095891202,0.74573378,67890.0,67889.0,0.001644]
[1730095891446,0.52048507,67890.0,67889.0,0.001644]
[1730095892322,0.42863997,67890.0,67889.0,0.001644]
[1730095892540,0.53893354,67890.0,67889.0,0.001644]
[1730095893464,0.52493354,67890.0,67889.0,0.001644]
[1730095893902,0.78020728,67890.0,67889.0,0.001644]
[1730095894122,0.70800347,67890.0,67889.0,0.001644]
[1730095894553,0.76530554,67890.0,67889.0,0.001644]
[1730095895193,0.75130554,67890.0,67889.0,0.001644]
[1730095895374,0.70800347,67890.0,67889.0,0.001644]
[1730095895625,0.72200347,67890.0,67889.0,0.001644]
[1730095895840,0.63015837,67890.0,67889.0,0.001644]
[1730095896264,0.55185837,67890.0,67889.0,0.001644]
[1730095896909,0.53785837,67890.0,67889.0,0.001644]
[1730095897121,0.55185837,67890.0,67889.0,0.001644]
[1730095902430,0.59515152,67890.0,67889.0,0.001644]
[1730095903145,0.59515164,67890.0,67889.0,0.001644]
[1730095903629,0.68899674,67890.0,67889.0,0.001644]
[1730095904115,0.67499674,67890.0,67889.0,0.001644]
[1730095904862,0.64699674,67890.0,67889.0,0.001644]
[1730095905098,0.66099674,67890.0,67889.0,0.001644]
[1730095905323,0.69347489,67890.0,67889.0,0.001644]
[1730095905561,0.87427489,67890.0,67889.0,0.001644]
[1730095906220,0.88827489,67890.0,67889.0,0.001644]
[1730095908052,0.73543651,67890.0,67889.0,0.001644]
[1730095908300,0.88390209,67890.0,67889.0,0.001644]
[1730095908537,0.86342394,67890.0,67889.0,0.001644]
[1730095908786,0.98662832,67890.0,67889.0,0.001644]
[1730095908974,0.81862394,67890.0,67889.0,0.001644]
[1730095909228,0.97899395,67890.0,67889.0,0.001644]
[1730095909434,0.84662394,67890.0,67889.0,0.001644]
[1730095909644,0.99712775,67890.0,67889.0,0.001644]
[1730095910499,1.14763156,67890.0,67889.0,0.001644]
[1730095912048,1.13363156,67890.0,67889.0,0.001644]
[1730095912288,1.14763156,67890.0,67889.0,0.001644]
[1730095912579,1.13363156,67890.0,67889.0,0.001644]
[1730095913033,1.14763156,67890.0,67889.0,0.001644]
[1730095915770,1.14763156,67890.0,67888.0,2.46336483]
[1730095915771,0.4403174,67889.0,67888.0,2.46336483]
[1730095915998,0.8954245,67889.0,67888.0,2.46336483]
[1730095917060,0.92670034,67889.0,67888.0,2.46336483]
[1730095917484,0.94070034,67889.0,67888.0,2.46336483]
[1730095918157,0.96870034,67889.0,67888.0,2.46336483]
[1730095918355,0.94070034,67889.0,67888.0,2.46336483]
[1730095919003,0.95470034,67889.0,67888.0,2.46336483]
[1730095921035,0.92670034,67889.0,67888.0,2.46336483]
[1730095921275,0.94070034,67889.0,67888.0,2.46336483]
[1730095922208,0.95470034,67889.0,67888.0,2.46336483]
[1730095923368,0.80419653,67889.0,67888.0,2.46336483]
[1730095924023,0.79019653,67889.0,67888.0,2.46336483]
[1730095924308,0.77619653,67889.0,67888.0,2.46336483]
[1730095924530,0.80419653,67889.0,67888.0,2.46336483]
[1730095925213,0.80419653,67889.0,67888.0,2.46500883]
[1730095925427,0.96711879,67889.0,67888.0,2.46500883]
[1730095925638,0.96794079,67889.0,67888.0,2.46500883]
[1730095925847,1.16018244,67889.0,67888.0,2.46500883]
[1730095926074,1.16018555,67889.0,67888.0,2.46500883]
[1730095926517,1.01126132,67889.0,67888.0,2.46500883]
[1730095933271,1.01126913,67889.0,67888.0,2.46500883]
[1730095933750,0.86076532,67889.0,67888.0,2.46500883]
[1730095937669,0.78276532,67889.0,67888.0,2.46500883]
[1730095942382,0.77581042,67889.0,67888.0,2.46500883]
[1730095942621,0.68396532,67889.0,67888.0,2.46500883]
[1730095942858,0.77581042,67889.0,67888.0,2.46500883]
[1730095944294,0.68396532,67889.0,67888.0,2.46500883]
[1730095944526,0.86765552,67889.0,67888.0,2.46500883]
[1730095947558,0.68396532,67889.0,67888.0,2.46500883]
[1730095947788,0.86765552,67889.0,67888.0,2.46500883]
[1730095949903,0.86565552,67889.0,67888.0,2.46500883]
[1730095950354,0.86765552,67889.0,67888.0,2.46500883]
[1730095952779,0.86565552,67889.0,67888.0,2.46500883]
[1730095953461,0.86765552,67889.0,67888.0,2.46500883]
[1730095955286,0.86565552,67889.0,67888.0,2.46500883]
[1730095955711,0.86765552,67889.0,67888.0,2.46500883]
[1730095955939,0.86565552,67889.0,67888.0,2.46500883]
[1730095956809,0.68196532,67889.0,67888.0,2.46500883]
[1730095956996,0.86765552,67889.0,67888.0,2.46500883]
[1730095957458,0.86565552,67889.0,67888.0,2.46500883]
[1730095958789,0.86765552,67889.0,67888.0,2.46500883]
[1730095959473,0.86565552,67889.0,67888.0,2.46500883]
[1730095960144,0.86265552,67889.0,67888.0,2.46500883]
[1730095960781,0.77081042,67889.0,67888.0,2.46500883]
[1730095961025,0.86265552,67889.0,67888.0,2.46500883]
[1730095961239,0.86465552,67889.0,67888.0,2.46500883]
[1730095961446,0.86265552,67889.0,67888.0,2.46500883]
[1730095962597,0.67896532,67889.0,67888.0,2.46500883]
[1730095962814,0.77081042,67889.0,67888.0,2.46500883]
[1730095963466,0.92013065,67889.0,67888.0,2.46500883]
[1730095963715,0.75681042,67889.0,67888.0,2.46500883]
[1730095963931,0.72881042,67889.0,67888.0,2.46500883]
[1730095964172,0.90613068,67889.0,67888.0,2.46500883]
[1730095965241,0.75681042,67889.0,67888.0,2.46500883]
[1730095966543,0.75881042,67889.0,67888.0,2.46500883]
[1730095966798,0.85065552,67889.0,67888.0,2.46500883]
[1730095967028,0.81937968,67889.0,67888.0,2.46500883]
[1730095967459,0.96988349,67889.0,67888.0,2.46500883]
[1730095967930,0.81937968,67889.0,67888.0,2.46500883]
[1730095974774,0.63368948,67889.0,67888.0,2.46500883]
[1730095975004,0.81737968,67889.0,67888.0,2.46500883]
[1730095976354,0.72553458,67889.0,67888.0,2.46500883]
[1730095977394,0.72753458,67889.0,67888.0,2.46500883]
[1730095979362,0.69953458,67889.0,67888.0,2.46500883]
[1730095979769,0.71353458,67889.0,67888.0,2.46500883]
[1730095979973,0.72753458,67889.0,67888.0,2.46500883]
[1730095980126,0.71153458,67889.0,67888.0,2.46500883]
[1730095980326,0.69727509,67889.0,67888.0,2.46500883]
[1730095980557,0.71127509,67889.0,67888.0,2.46500883]
[1730095980770,0.71127509,67889.0,67888.0,2.63850883]
[1730095980771,0.36270778,67889.0,67888.0,2.63850883]
[1730095980989,0.37670778,67889.0,67888.0,2.63850883]
[1730095981210,0.38292618,67889.0,67888.0,2.63850883]
[1730095981884,0.36892618,67889.0,67888.0,2.63850883]
[1730095982121,0.47670778,67889.0,67888.0,2.63850883]
[1730095982364,0.55455288,67889.0,67888.0,2.63850883]
[1730095982567,0.56077128,67889.0,67888.0,2.63850883]
[1730095982793,0.55877128,67889.0,67888.0,2.63850883]
[1730095983012,0.56855288,67889.0,67888.0,2.63850883]
[1730095983673,0.57277128,67889.0,67888.0,2.63850883]
[1730095992938,0.57317923,67889.0,67888.0,2.63850883]
[1730095993349,0.57317482,67889.0,67888.0,2.63850883]
[1730095997579,0.5726393,67889.0,67888.0,2.63850883]
[1730095998033,0.70518996,67889.0,67888.0,2.63850883]
[1730095998251,0.70097156,67889.0,67888.0,2.63850883]
[1730095998703,0.43870025,67889.0,67888.0,2.63850883]
[1730095999146,0.32825527,67889.0,67888.0,2.63850883]
[1730095999382,0.41659697,67889.0,67888.0,2.63850883]
[1730095999588,0.40259697,67889.0,67888.0,2.63850883]
[1730096000010,0.41659697,67889.0,67888.0,2.63850883]
[1730096000229,0.31425527,67889.0,67888.0,2.63850883]
[1730096001337,0.1537549,67889.0,67888.0,2.63850883]
[1730096001547,0.1677549,67889.0,67888.0,2.63850883]
[1730096001810,0.1817549,67889.0,67888.0,2.63850883]
[1730096002005,0.23399158,67889.0,67888.0,2.63850883]
[1730096002225,0.1817549,67889.0,67888.0,2.63850883]
[1730096003732,0.24799115,67889.0,67888.0,2.63850883]
[1730096004338,0.1537549,67889.0,67888.0,2.63850883]
[1730096004543,0.1677549,67889.0,67888.0,2.63850883]
[1730096004761,0.1817549,67889.0,67888.0,2.63850883]
[1730096009293,0.22588798,67889.0,67888.0,2.63850883]
[1730096011404,0.22588465,67889.0,67888.0,2.63850883]
[1730096013474,0.22588465,67889.0,67888.0,2.46500883]
[1730096013475,0.62321309,67889.0,67888.0,2.46500883]
[1730096013676,0.53136799,67889.0,67888.0,2.46500883]
[1730096014743,0.53336799,67889.0,67888.0,2.46500883]
[1730096015140,0.62521309,67889.0,67888.0,2.46500883]
[1730096015348,0.81904416,67889.0,67888.0,2.46500883]
[1730096016485,0.80504416,67889.0,67888.0,2.46500883]
[1730096016701,0.81904416,67889.0,67888.0,2.46500883]
[1730096016930,0.80304416,67889.0,67888.0,2.46500883]
[1730096017112,0.78904416,67889.0,67888.0,2.46500883]
[1730096017343,0.80304416,67889.0,67888.0,2.46500883]
[1730096017546,0.81633335,67889.0,67888.0,2.46500883]
[1730096018171,1.13166135,67889.0,67888.0,2.46500883]
[1730096018379,1.14566135,67889.0,67888.0,2.46500883]
[1730096018564,1.10112345,67889.0,67888.0,2.46500883]
[1730096019749,0.99763335,67889.0,67888.0,2.46500883]
[1730096020195,0.99616735,67889.0,67888.0,2.46500883]
[1730096023166,1.14515273,67889.0,67888.0,2.46500883]
[1730096023366,0.99616735,67889.0,67888.0,2.46500883]
[1730096024361,1.14514808,67889.0,67888.0,2.46500883]
[1730096026678,1.29565189,67889.0,67888.0,2.46500883]
[1730096027356,1.14514808,67889.0,67888.0,2.46500883]
[1730096029295,0.99616735,67889.0,67888.0,2.46500883]
[1730096030623,0.99616735,67889.0,67888.0,2.46508248]
[1730096031920,0.91926735,67889.0,67888.0,2.46508248]
[1730096038764,0.77418376,67889.0,67888.0,2.46508248]
[1730096038969,0.91815094,67889.0,67888.0,2.46508248]
[1730096040839,0.97419091,67889.0,67888.0,2.46508248]
[1730096041693,0.91815094,67889.0,67888.0,2.46508248]
[1730096048735,0.89015094,67889.0,67888.0,2.46508248]
[1730096049144,0.82775094,67889.0,67888.0,2.46508248]
[1730096049556,0.81375094,67889.0,67888.0,2.46508248]
[1730096049960,0.82775094,67889.0,67888.0,2.46508248]
[1730096051448,0.82793892,67889.0,67888.0,2.46508248]
[1730096051654,0.97687257,67889.0,67888.0,2.46508248]
[1730096053583,0.82793892,67889.0,67888.0,2.46508248]
[1730096055317,0.68378376,67889.0,67888.0,2.46508248]
[1730096055727,0.82606073,67889.0,67888.0,2.46508248]
[1730096055948,0.64237053,67889.0,67888.0,2.46508248]
[1730096056163,0.72021563,67889.0,67888.0,2.55788248]
[1730096056371,0.81206073,67889.0,67888.0,2.55788248]
[1730096056795,0.82606073,67889.0,67888.0,2.55788248]
[1730096057677,0.81206073,67889.0,67888.0,2.55788248]
[1730096058139,0.68178376,67889.0,67888.0,2.55788248]
[1730096061159,0.68378376,67889.0,67888.0,2.46508248]
[1730096063295,0.68178376,67889.0,67888.0,2.46508248]
[1730096063502,0.68378376,67889.0,67888.0,2.46508248]
[1730096064152,0.66978376,67889.0,67888.0,2.46508248]
[1730096064867,0.68178376,67889.0,67888.0,2.46508248]
[1730096065078,0.68378376,67889.0,67888.0,2.46508248]
[1730096066268,0.68378376,67889.0,67888.0,2.46458058]
[1730096066477,0.68178376,67889.0,67888.0,2.46437158]
[1730096066885,0.68378376,67889.0,67888.0,2.46437158]
[1730096069790,0.68178376,67889.0,67888.0,2.46437158]
[1730096069991,0.68378376,67889.0,67888.0,2.46437158]
[1730096071024,0.83428757,67889.0,67888.0,2.46437158]
[1730096071658,0.83228757,67889.0,67888.0,2.46437158]
[1730096072812,0.85536652,67889.0,67888.0,2.46437158]
[1730096074932,0.99690664,67889.0,67888.0,2.46437158]
[1730096075139,0.99890664,67889.0,67888.0,2.46437158]
[1730096075561,0.84640283,67889.0,67888.0,2.46437158]
[1730096075965,0.84840283,67889.0,67888.0,2.46437158]
[1730096077071,0.84640283,67889.0,67888.0,2.46437158]
[1730096089654,0.84640283,67889.0,67888.0,2.63727158]
[1730096089655,0.65649423,67889.0,67888.0,2.63727158]
[1730096089844,0.37162228,67889.0,67888.0,2.63727158]
[1730096090306,0.50436783,67889.0,67888.0,2.63727158]
[1730096090508,0.31429502,67889.0,67888.0,2.63727158]
[1730096090971,0.32829502,67889.0,67888.0,2.63727158]
[1730096091498,0.31429502,67889.0,67888.0,2.63727158]
[1730096091703,0.32829502,67889.0,67888.0,2.63727158]
[1730096092153,0.31429502,67889.0,67888.0,2.63727158]
[1730096092571,0.43871732,67889.0,67888.0,2.63727158]
[1730096093596,0.32829502,67889.0,67888.0,2.63727158]
[1730096094448,0.41658975,67889.0,67888.0,2.63727158]
[1730096094663,0.63678082,67889.0,67888.0,2.63727158]
[1730096094897,0.82736614,67889.0,67888.0,2.46437158]
[1730096095099,1.00340627,67889.0,67888.0,2.46437158]
[1730096095307,0.87066072,67889.0,67888.0,2.46437158]
[1730096095769,0.72015691,67889.0,67888.0,2.46437158]
[1730096095979,0.71452301,67889.0,67888.0,2.46437158]
[1730096096191,0.72084192,67889.0,67888.0,2.46437158]
[1730096098116,0.72124924,67889.0,67888.0,2.46437158]
[1730096099596,0.72124924,67889.0,67888.0,2.46421969]
[1730096101234,0.5793018,67889.0,67888.0,2.46421969]
[1730096101458,0.72133199,67889.0,67888.0,2.46421969]
[1730096102154,0.72333199,67889.0,67888.0,2.46421969]
[1730096102795,0.72133199,67889.0,67888.0,2.46421969]
[1730096105719,0.62948689,67889.0,67888.0,2.46421969]
[1730096105998,0.62948689,67889.0,67888.0,2.64161969]
[1730096105999,0.56479715,67889.0,67888.0,2.64161969]
[1730096106211,0.52150257,67889.0,67888.0,2.64161969]
[1730096106419,0.52150257,67889.0,67888.0,2.64138288]
[1730096112201,0.63190173,67889.0,67888.0,2.64138288]
[1730096112616,0.52150257,67889.0,67888.0,2.64138288]
[1730096114908,0.52256416,67889.0,67888.0,2.64138288]
[1730096115803,0.63295762,67889.0,67888.0,2.64138288]
[1730096116491,0.52256416,67889.0,67888.0,2.64138288]
[1730096119256,0.42256416,67889.0,67888.0,2.64138288]
[1730096121937,0.44110982,67889.0,67888.0,2.64138288]
[1730096122156,0.32571906,67889.0,67888.0,2.64138288]
[1730096122374,0.24867217,67889.0,67888.0,2.64138288]
[1730096122776,0.22659121,67889.0,67888.0,2.64216448]
[1730096122986,0.18243991,67889.0,67888.0,2.64216448]
[1730096123611,0.16843991,67889.0,67888.0,2.64216448]
[1730096123833,0.00714091,67889.0,67888.0,2.64216448]
[1730096124062,0.03314091,67889.0,67888.0,2.64516448]
[1730096124300,0.03314091,67889.0,67888.0,2.79246548]
[1730096124301,0.013822,67889.0,67888.0,2.79246548]
[1730096124568,0.013822,67889.0,67888.0,2.64516448]
[1730096124804,0.000822,67889.0,67888.0,2.96596929]
[1730096126120,0.013822,67889.0,67888.0,2.96596929]
[1730096126317,0.026822,67889.0,67888.0,2.96596929]
[1730096126558,0.013822,67889.0,67888.0,2.96596929]
[1730096126717,0.000822,67889.0,67888.0,2.96596929]
[1730096126918,0.002822,67889.0,67888.0,2.96596929]
[1730096127247,0.004822,67889.0,67888.0,2.96596929]
[1730096129287,0.004822,67889.0,67888.0,2.79266829]
[1730096129495,0.152121,67889.0,67888.0,2.64516448]
[1730096129696,0.15846349,67889.0,67888.0,2.64216448]
[1730096130740,0.15846349,67889.0,67888.0,2.64138288]
[1730096131001,0.15846349,67889.0,67888.0,2.64216448]
[1730096131144,0.152121,67889.0,67888.0,2.64216448]
[1730096131370,0.157121,67889.0,67888.0,2.46398288]
[1730096131692,0.25530929,67889.0,67888.0,2.46398288]
[1730096132532,0.25130929,67889.0,67888.0,2.46398288]
[1730096132829,0.26830929,67889.0,67888.0,2.46398288]
[1730096133229,0.25130929,67889.0,67888.0,2.46398288]
[1730096133437,0.8596419,67889.0,67888.0,2.46398288]
[1730096133606,0.5298131,67889.0,67888.0,2.46398288]
[1730096133794,0.5158131,67889.0,67888.0,2.46398288]
[1730096134002,0.57312887,67889.0,67888.0,2.46398288]
[1730096134401,0.55912887,67889.0,67888.0,2.46398288]
[1730096135509,0.54512887,67889.0,67888.0,2.46398288]
[1730096135927,0.57312887,67889.0,67888.0,2.46398288]
[1730096136133,0.55912887,67889.0,67888.0,2.46398288]
[1730096136566,0.57312887,67889.0,67888.0,2.46398288]
[1730096136981,0.48128377,67889.0,67888.0,2.46398288]
[1730096137816,0.62218241,67889.0,67888.0,2.46398288]
[1730096138022,0.48128377,67889.0,67888.0,2.46398288]
[1730096139493,0.57312887,67889.0,67888.0,2.46398288]
[1730096140707,0.55912887,67889.0,67888.0,2.46398288]
[1730096140918,0.56112887,67889.0,67888.0,2.46398288]
[1730096141518,0.54512887,67889.0,67888.0,2.46398288]
[1730096141874,0.55912887,67889.0,67888.0,2.46398288]
[1730096142082,0.57312887,67889.0,67888.0,2.46398288]
[1730096142312,0.54512887,67889.0,67888.0,2.46398288]
[1730096142725,0.58423871,67889.0,67888.0,2.46398288]
[1730096143120,0.58623871,67889.0,67888.0,2.46398288]
[1730096144246,0.66823871,67889.0,67888.0,2.46398288]
[1730096144587,0.79873689,67889.0,67888.0,2.46398288]
[1730096146410,0.79873937,67889.0,67888.0,2.46398288]
[1730096148021,0.70689427,67889.0,67888.0,2.46398288]
[1730096148232,0.79873937,67889.0,67888.0,2.46398288]
[1730096148579,0.70689427,67889.0,67888.0,2.46398288]
[1730096149549,0.75147852,67889.0,67888.0,2.46398288]
[1730096149793,0.84332362,67889.0,67888.0,2.46398288]
[1730096149996,0.71082296,67889.0,67888.0,2.46398288]
[1730096150214,0.66623871,67889.0,67888.0,2.46398288]
[1730096152542,0.79873019,67889.0,67888.0,2.46398288]
[1730096153578,0.70688509,67889.0,67888.0,2.46398288]
[1730096154145,0.62488509,67889.0,67888.0,2.46398288]
[1730096154771,0.71673019,67889.0,67888.0,2.46398288]
[1730096155633,0.7167187,67889.0,67888.0,2.46398288]
[1730096155858,0.58423871,67889.0,67888.0,2.46398288]
[1730096156054,0.7167187,67889.0,67888.0,2.46398288]
[1730096156301,0.6248736,67889.0,67888.0,2.46398288]
[1730096156548,0.58423871,67889.0,67888.0,2.46398288]
[1730096156764,0.49239361,67889.0,67888.0,2.46398288]
[1730096156972,0.58423871,67889.0,67888.0,2.46398288]
[1730096157170,0.49239361,67889.0,67888.0,2.46398288]
[1730096158197,0.58423871,67889.0,67888.0,2.46398288]
[1730096160500,0.7167187,67889.0,67888.0,2.46398288]
[1730096162529,0.58423871,67889.0,67888.0,2.46398288]
[1730096171612,0.73356654,67889.0,67888.0,2.46398288]
[1730096172001,0.71956654,67889.0,67888.0,2.46398288]
[1730096172217,0.57023871,67889.0,67888.0,2.46398288]
[1730096172978,0.58423871,67889.0,67888.0,2.46398288]
[1730096173320,0.57023871,67889.0,67888.0,2.46398288]
[1730096173940,0.58423871,67889.0,67888.0,2.46398288]
[1730096174269,0.73356812,67889.0,67888.0,2.46398288]
[1730096174415,0.58423871,67889.0,67888.0,2.46398288]
[1730096174613,0.73356746,67889.0,67888.0,2.46398288]
[1730096177637,0.64172236,67889.0,67888.0,2.46398288]
[1730096182159,0.64172304,67889.0,67888.0,2.46398288]
[1730096184869,0.3418898,67889.0,67888.0,2.54458288]
[1730096185073,0.22577996,67889.0,67888.0,2.64428288]
[1730096185286,0.45533754,67889.0,67888.0,2.64428288]
[1730096185492,0.32262506,67889.0,67888.0,2.64428288]
[1730096185700,0.30862506,67889.0,67888.0,2.64428288]
[1730096186103,0.21177996,67889.0,67888.0,2.64428288]
[1730096186968,0.22577996,67889.0,67888.0,2.64428288]
[1730096187570,0.31762506,67889.0,67888.0,2.64428288]
[1730096188367,0.27430929,67889.0,67888.0,2.64428288]
[1730096188794,0.29298444,67889.0,67888.0,2.64506448]
[1730096188998,0.18246419,67889.0,67888.0,2.64506448]
[1730096189210,0.27087811,67889.0,67888.0,2.64506448]
[1730096189410,0.24875919,67889.0,67888.0,2.64506448]
[1730096189618,0.18246419,67889.0,67888.0,2.64506448]
[1730096190366,0.24874463,67889.0,67888.0,2.64506448]
[1730096191036,0.24874353,67889.0,67888.0,2.64506448]
[1730096191352,0.18246419,67889.0,67888.0,2.64506448]
[1730096192185,0.22664178,67889.0,67888.0,2.64506448]
[1730096194049,0.2266275,67889.0,67888.0,2.64506448]
[1730096195517,0.2266267,67889.0,67888.0,2.64506448]
[1730096196336,0.18246419,67889.0,67888.0,2.64506448]
[1730096208745,0.18246419,67889.0,67888.0,2.54536448]
[1730096215394,0.22661713,67889.0,67888.0,2.54536448]
[1730096215650,0.2266069,67889.0,67888.0,2.54536448]
[1730096216755,0.18246419,67889.0,67888.0,2.54536448]
[1730096218566,0.24868867,67889.0,67888.0,2.54458288]
[1730096218811,0.24868867,67889.0,67888.0,2.54536448]
[1730096219359,0.29395701,67889.0,67888.0,2.54536448]
[1730096220473,0.29396651,67889.0,67888.0,2.54536448]
[1730096222224,0.22773253,67889.0,67888.0,2.54536448]
[1730096223268,0.36784435,67889.0,67888.0,2.54536448]
[1730096223477,0.22663503,67889.0,67888.0,2.63876448]
[1730096223782,0.18246419,67889.0,67888.0,2.63876448]
[1730096223952,0.03516519,67889.0,67888.0,2.93956929]
[1730096224154,0.028822,67889.0,67888.0,2.79226829]
[1730096224550,0.03565721,67889.0,67888.0,2.93956929]
[1730096224805,0.02165721,67889.0,67888.0,2.93956929]
[1730096225453,0.02165721,67889.0,67888.0,2.79226829]
[1730096225660,0.000822,67889.0,67888.0,2.79226829]
[1730096225870,0.000822,67889.0,67888.0,2.63876448]
[1730096226048,0.154121,67889.0,67888.0,2.63876448]
[1730096226209,0.16795621,67889.0,67888.0,2.63876448]
[1730096228101,0.16795621,67889.0,67888.0,2.64176448]
[1730096228379,0.161121,67889.0,67888.0,2.64176448]
[1730096228706,0.16795621,67889.0,67888.0,2.64176448]
[1730096230025,0.02065721,67889.0,67888.0,2.64176448]
[1730096230603,0.013822,67889.0,67888.0,2.64176448]
[1730096230813,0.02065721,67889.0,67888.0,2.64176448]
[1730096235286,0.02065721,67889.0,67888.0,2.78906548]
[1730096235859,0.013822,67889.0,67888.0,2.78906548]
[1730096236151,0.02049385,67889.0,67888.0,2.78906548]
[1730096236721,0.02049385,67889.0,67888.0,2.64176448]
[1730096237120,0.013822,67889.0,67888.0,2.64176448]
[1730096238859,0.02049385,67889.0,67888.0,2.64176448]
[1730096241285,0.02049385,67889.0,67888.0,2.93956929]
[1730096241668,0.013822,67889.0,67888.0,2.93956929]
[1730096242500,0.02056255,67889.0,67888.0,2.93956929]
[1730096243712,0.02056255,67889.0,67888.0,2.96256929]
[1730096244004,0.013822,67889.0,67888.0,2.96256929]
[1730096244465,0.013822,67889.0,67888.0,2.96756929]
[1730096244697,0.007822,67889.0,67888.0,2.96756929]
[1730096244934,0.000822,67889.0,67888.0,2.96756929]
[1730096245156,0.003822,67889.0,67888.0,2.96756929]
[1730096245390,0.007822,67889.0,67888.0,2.96756929]
[1730096249139,0.007822,67889.0,67888.0,2.96256929]
[1730096249360,0.007822,67889.0,67888.0,2.96756929]
[1730096256632,0.007822,67889.0,67888.0,2.96256929]
[1730096256852,0.007822,67889.0,67888.0,2.96756929]
[1730096264369,0.004822,67889.0,67888.0,2.96756929]
[1730096264684,0.004822,67889.0,67888.0,2.96956929]
[1730096264893,0.000822,67889.0,67888.0,2.96956929]
[1730096265135,0.000822,67889.0,67888.0,2.96756929]
[1730096265592,0.000822,67889.0,67888.0,2.96856929]
[1730096266938,0.000822,67889.0,67888.0,2.96756929]
[1730096267146,0.000822,67889.0,67888.0,2.97417836]
[1730096267362,0.000822,67889.0,67888.0,2.97217836]
[1730096267819,0.000822,67889.0,67888.0,2.97617836]
[1730096268283,0.000822,67889.0,67888.0,2.98017836]
[1730096268694,0.000822,67889.0,67888.0,2.97817836]
[1730096268903,0.000822,67889.0,67888.0,2.98317836]
[1730096269320,0.000822,67889.0,67888.0,2.98817836]
[1730096269657,0.000822,67889.0,67888.0,2.97817836]
[1730096271305,0.000822,67889.0,67888.0,2.97356929]
[1730096271512,0.000822,67889.0,67888.0,2.97817851]
[1730096273285,0.000822,67889.0,67888.0,2.97356929]
[1730096274288,0.000822,67889.0,67888.0,2.97817848]
[1730096274878,0.000822,67889.0,67888.0,2.97817851]
[1730096276164,0.000822,67889.0,67888.0,2.97356929]
[1730096278506,0.000822,67889.0,67888.0,2.79956929]
[1730096279733,0.000822,67889.0,67888.0,2.79756929]
[1730096280102,0.000822,67889.0,67888.0,2.79556929]
[1730096280334,0.000822,67889.0,67888.0,2.79956929]
[1730096280583,0.000822,67889.0,67888.0,2.62926829]
[1730096281220,0.0076302,67889.0,67888.0,2.62926829]
[1730096281430,0.0076302,67889.0,67888.0,2.77256929]
[1730096281900,0.0076302,67889.0,67888.0,2.77156929]
[1730096283080,0.001822,67889.0,67888.0,2.77056929]
[1730096283286,0.003822,67889.0,67888.0,2.77056929]
[1730096283691,0.00962615,67889.0,67888.0,2.61826829]
[1730096283895,0.005822,67889.0,67888.0,2.77056929]
[1730096284100,0.01262615,67889.0,67888.0,2.77056929]
[1730096284307,0.005822,67889.0,67888.0,2.77056929]
[1730096288180,0.005822,67889.0,67888.0,2.62326829]
[1730096288583,0.01262615,67889.0,67888.0,2.62326829]
[1730096288786,0.005822,67889.0,67888.0,2.77056929]
[1730096288993,0.01262615,67889.0,67888.0,2.77056929]
[1730096289205,0.005822,67889.0,67888.0,2.77056929]
[1730096289383,0.01262615,67889.0,67888.0,2.77056929]
[1730096290804,0.005822,67889.0,67888.0,2.77056929]
[1730096296872,0.01262615,67889.0,67888.0,2.77056929]
[1730096297151,0.005822,67889.0,67888.0,2.77056929]
[1730096297391,0.01262615,67889.0,67888.0,2.77056929]
[1730096297628,0.01262694,67889.0,67888.0,2.77056929]
[1730096298074,0.01262694,67889.0,67888.0,2.62326829]
[1730096299412,0.01262694,67889.0,67888.0,2.77056929]
[1730096306921,0.01262694,67889.0,67888.0,2.62326829]